{"text_format":"3","workbook":"xlsx","n_sheets":1,"sheets":["موازنة الأسرة الشهرية"],"not_rendered":{"charts":2,"defined_names":2},"read":"whole","date_system":"1900"}

{"sheet":"موازنة الأسرة الشهرية","index":0,"n_rows":68,"n_cols":17,"rows_kept":68,"merged":[[0,1,0,7],[2,1,2,2],[2,6,2,7],[7,19,7,20],[8,6,8,7],[10,16,10,17],[13,19,13,20],[16,16,16,17],[18,1,18,4],[29,1,29,4],[36,1,36,4],[42,1,42,4],[54,1,54,4],[61,1,61,4]]}
[]
[]
[null,"إجمالي التكلفة التقديرية",null,"إجمالي التكلفة الفعلية","إجمالي الفارق",null,"الدخل الشهري التقديري"]
[null,null,{"$f":"Housing[[#Totals],[التكلفة التقديرية]]+Transportation[[#Totals],[التكلفة التقديرية]]+Insurance[[#Totals],[التكلفة التقديرية]]+Food[[#Totals],[التكلفة التقديرية]]+Children[[#Totals],[التكلفة التقديرية]]+Legal[[#Totals],[التكلفة التقديرية]]+Savings[[#Totals],[التكلفة التقديرية]]+Loans[[#Totals],[التكلفة التقديرية]]+Entertainment[[#Totals],[التكلفة التقديرية]]+Taxes[[#Totals],[التكلفة التقديرية]]+PersonalCare[[#Totals],[التكلفة التقديرية]]+Pets[[#Totals],[التكلفة التقديرية]]+Gifts[[#Totals],[التكلفة التقديرية]]","v":{"v":3941,"d":"ر.س.‏ 3,941"}},{"$f":"Housing[[#Totals],[التكلفة الفعلية]]+Transportation[[#Totals],[التكلفة الفعلية]]+Insurance[[#Totals],[التكلفة الفعلية]]+Food[[#Totals],[التكلفة الفعلية]]+Children[[#Totals],[التكلفة الفعلية]]+Legal[[#Totals],[التكلفة الفعلية]]+Savings[[#Totals],[التكلفة الفعلية]]+Loans[[#Totals],[التكلفة الفعلية]]+Entertainment[[#Totals],[التكلفة الفعلية]]+Taxes[[#Totals],[التكلفة الفعلية]]+PersonalCare[[#Totals],[التكلفة الفعلية]]+Pets[[#Totals],[التكلفة الفعلية]]+Gifts[[#Totals],[التكلفة الفعلية]]","v":{"v":4034,"d":"ر.س.‏ 4,034"}},{"$f":"Housing[[#Totals],[الفارق]]+Transportation[[#Totals],[الفارق]]+Insurance[[#Totals],[الفارق]]+Food[[#Totals],[الفارق]]+Children[[#Totals],[الفارق]]+Legal[[#Totals],[الفارق]]+Savings[[#Totals],[الفارق]]+Loans[[#Totals],[الفارق]]+Entertainment[[#Totals],[الفارق]]+Taxes[[#Totals],[الفارق]]+PersonalCare[[#Totals],[الفارق]]+Pets[[#Totals],[الفارق]]+Gifts[[#Totals],[الفارق]]","v":{"v":-93,"d":"ر.س.‏ 93"}},null,"الدخل الأول",{"v":1500,"d":"ر.س.‏ 1,500"}]
[{"$nulls":6},"الدخل الثاني",{"v":1200,"d":"ر.س.‏ 1,200"}]
[null,"المسكن","التكلفة التقديرية","التكلفة الفعلية","الفارق",null,"دخل إضافي",{"v":300,"d":"ر.س.‏ 300"}]
[null,"الرهن العقاري الثاني أو الإيجار",{"v":0,"d":"ر.س.‏ 0.000"},{"v":0,"d":"ر.س.‏ 0.000"},{"$f":"Housing[التكلفة التقديرية]-Housing[التكلفة الفعلية]","v":{"v":0,"d":"ر.س.‏ 0.000"}},null,"إجمالي الدخل الشهري",{"$f":"SUM(H4:H6)","v":{"v":3000,"d":"ر.س.‏ 3,000"}}]
[null,"المؤن",{"v":0,"d":"ر.س.‏ 0.000"},{"v":0,"d":"ر.س.‏ 0.000"},{"$f":"Housing[التكلفة التقديرية]-Housing[التكلفة الفعلية]","v":{"v":0,"d":"ر.س.‏ 0.000"}}]
[null,"أشياء أخرى",{"v":0,"d":"ر.س.‏ 0.000"},{"v":0,"d":"ر.س.‏ 0.000"},{"$f":"Housing[التكلفة التقديرية]-Housing[التكلفة الفعلية]","v":{"v":0,"d":"ر.س.‏ 0.000"}},null,"الدخل الشهري الفعلي",{"$nulls":3},"  "]
[null,"المياه والمجاري",{"v":8,"d":"ر.س.‏ 8.000"},{"v":8,"d":"ر.س.‏ 8.000"},{"$f":"Housing[التكلفة التقديرية]-Housing[التكلفة الفعلية]","v":{"v":0,"d":"ر.س.‏ 0.000"}},null,"الدخل الأول",{"v":4000,"d":"ر.س.‏ 4,000"}]
[null,"إزالة النفايات",{"v":10,"d":"ر.س.‏ 10.000"},{"v":10,"d":"ر.س.‏ 10.000"},{"$f":"Housing[التكلفة التقديرية]-Housing[التكلفة الفعلية]","v":{"v":0,"d":"ر.س.‏ 0.000"}},null,"الدخل الثاني",{"v":1200,"d":"ر.س.‏ 1,200"}]
[null,"الصيانة أو الإصلاحات",{"v":23,"d":"ر.س.‏ 23.000"},{"v":23,"d":"ر.س.‏ 23.000"},{"$f":"Housing[التكلفة التقديرية]-Housing[التكلفة الفعلية]","v":{"v":0,"d":"ر.س.‏ 0.000"}},null,"دخل إضافي",{"v":300,"d":"ر.س.‏ 300"}]
[null,"الغاز",{"v":22,"d":"ر.س.‏ 22.000"},{"v":35,"d":"ر.س.‏ 35.000"},{"$f":"Housing[التكلفة التقديرية]-Housing[التكلفة الفعلية]","v":{"v":-13,"d":"-ر.س.‏ 13.000"}},null,"إجمالي الدخل الشهري",{"$f":"SUM(H10:H12)","v":{"v":5500,"d":"ر.س.‏ 5,500"}}]
[null,"الكابل",{"v":34,"d":"ر.س.‏ 34.000"},{"v":34,"d":"ر.س.‏ 34.000"},{"$f":"Housing[التكلفة التقديرية]-Housing[التكلفة الفعلية]","v":{"v":0,"d":"ر.س.‏ 0.000"}}]
[null,"الهاتف",{"v":120,"d":"ر.س.‏ 120.000"},{"v":120,"d":"ر.س.‏ 120.000"},{"$f":"Housing[التكلفة التقديرية]-Housing[التكلفة الفعلية]","v":{"v":0,"d":"ر.س.‏ 0.000"}},null,"المعدل التقديري\n",{"$f":"SUM(H7-C4)","v":{"v":-941,"d":"ر.س.‏ 941"}}]
[null,"الكهرباء",{"v":44,"d":"ر.س.‏ 44.000"},{"v":44,"d":"ر.س.‏ 44.000"},{"$f":"Housing[التكلفة التقديرية]-Housing[التكلفة الفعلية]","v":{"v":0,"d":"ر.س.‏ 0.000"}},null,"المعدل الفعلي",{"$f":"SUM(H13-D4)","v":{"v":1466,"d":"ر.س.‏ 1,466"}}]
[null,"الرهن والإيجار",{"v":1100,"d":"ر.س.‏ 1,100.000"},{"v":1100,"d":"ر.س.‏ 1,100.000"},{"$f":"Housing[التكلفة التقديرية]-Housing[التكلفة الفعلية]","v":{"v":0,"d":"ر.س.‏ 0.000"}},null,"الفارق",{"$f":"SUM(H16-H15)","v":{"v":2407,"d":"ر.س.‏ 2,407"}}]
[null,"الإجمالي",{"$f":"SUBTOTAL(109,Housing[التكلفة التقديرية])","v":{"v":1361,"d":"ر.س.‏ 1,361.000"}},{"$f":"SUBTOTAL(109,Housing[التكلفة الفعلية])","v":{"v":1374,"d":"ر.س.‏ 1,374.000"}},{"$f":"SUBTOTAL(109,Housing[الفارق])","v":{"v":-13,"d":"-ر.س.‏ 13.000"}}]
[]
[null,"الانتقالات","التكلفة التقديرية","التكلفة الفعلية","الفارق",null,"وسائل الترفيه","التكلفة التقديرية","التكلفة الفعلية","الفارق"]
[null,"قسط العربة الأولى",{"v":350,"d":"ر.س.‏ 350.000"},{"v":350,"d":"ر.س.‏ 350.000"},{"$f":"Transportation[التكلفة التقديرية]-Transportation[التكلفة الفعلية]","v":{"v":0,"d":"ر.س.‏ 0.000"}},null,"فيديو/ أقراص DVD",null,null,{"$f":"Entertainment[التكلفة التقديرية]-Entertainment[التكلفة الفعلية]","v":{"v":0,"d":"ر.س.‏ 0.000"}}]
[null,"قسط العربة الثانية",{"v":200,"d":"ر.س.‏ 200.000"},{"v":200,"d":"ر.س.‏ 200.000"},{"$f":"Transportation[التكلفة التقديرية]-Transportation[التكلفة الفعلية]","v":{"v":0,"d":"ر.س.‏ 0.000"}},null,"أقراص مضغوطة",null,null,{"$f":"Entertainment[التكلفة التقديرية]-Entertainment[التكلفة الفعلية]","v":{"v":0,"d":"ر.س.‏ 0.000"}}]
[null,"أجرة السيارة الأجرة/ الحافلة",{"v":100,"d":"ر.س.‏ 100.000"},{"v":100,"d":"ر.س.‏ 100.000"},{"$f":"Transportation[التكلفة التقديرية]-Transportation[التكلفة الفعلية]","v":{"v":0,"d":"ر.س.‏ 0.000"}},null,"أفلام",{"v":50,"d":"ر.س.‏ 50.000"},{"v":50,"d":"ر.س.‏ 50.000"},{"$f":"Entertainment[التكلفة التقديرية]-Entertainment[التكلفة الفعلية]","v":{"v":0,"d":"ر.س.‏ 0.000"}}]
[null,"الوقود",{"v":60,"d":"ر.س.‏ 60.000"},{"v":60,"d":"ر.س.‏ 60.000"},{"$f":"Transportation[التكلفة التقديرية]-Transportation[التكلفة الفعلية]","v":{"v":0,"d":"ر.س.‏ 0.000"}},null,"حفلات",{"v":300,"d":"ر.س.‏ 300.000"},{"v":300,"d":"ر.س.‏ 300.000"},{"$f":"Entertainment[التكلفة التقديرية]-Entertainment[التكلفة الفعلية]","v":{"v":0,"d":"ر.س.‏ 0.000"}},{"$nulls":5},"إسكان",1300]
[null,"التأمين",{"v":50,"d":"ر.س.‏ 50.000"},{"v":50,"d":"ر.س.‏ 50.000"},{"$f":"Transportation[التكلفة التقديرية]-Transportation[التكلفة الفعلية]","v":{"v":0,"d":"ر.س.‏ 0.000"}},null,"أحداث رياضية",null,null,{"$f":"Entertainment[التكلفة التقديرية]-Entertainment[التكلفة الفعلية]","v":{"v":0,"d":"ر.س.‏ 0.000"}},{"$nulls":5},"وسيلة نقل",800]
[null,"الصيانة",{"v":20,"d":"ر.س.‏ 20.000"},{"v":0,"d":"ر.س.‏ 0.000"},{"$f":"Transportation[التكلفة التقديرية]-Transportation[التكلفة الفعلية]","v":{"v":20,"d":"ر.س.‏ 20.000"}},null,"المسرح",{"v":100,"d":"ر.س.‏ 100.000"},{"v":100,"d":"ر.س.‏ 100.000"},{"$f":"Entertainment[التكلفة التقديرية]-Entertainment[التكلفة الفعلية]","v":{"v":0,"d":"ر.س.‏ 0.000"}},{"$nulls":5},"التأمين",500]
[null,"الترخيص",null,null,{"$f":"Transportation[التكلفة التقديرية]-Transportation[التكلفة الفعلية]","v":{"v":0,"d":"ر.س.‏ 0.000"}},null,"أشياء أخرى",null,null,{"$f":"Entertainment[التكلفة التقديرية]-Entertainment[التكلفة الفعلية]","v":{"v":0,"d":"ر.س.‏ 0.000"}},{"$nulls":5},"طعام",700]
[null,"أشياء أخرى",null,null,{"$f":"Transportation[التكلفة التقديرية]-Transportation[التكلفة الفعلية]","v":{"v":0,"d":"ر.س.‏ 0.000"}},null,"الإجمالي ",{"$f":"SUBTOTAL(109,Entertainment[التكلفة التقديرية])","v":{"v":450,"d":"ر.س.‏ 450.000"}},{"$f":"SUBTOTAL(109,Entertainment[التكلفة الفعلية])","v":{"v":450,"d":"ر.س.‏ 450.000"}},{"$f":"SUBTOTAL(109,Entertainment[الفارق])","v":{"v":0,"d":"ر.س.‏ 0.000"}},{"$nulls":5},"أولاد",500]
[null,"الإجمالي",{"$f":"SUBTOTAL(109,Transportation[التكلفة التقديرية])","v":{"v":780,"d":"ر.س.‏ 780.000"}},{"$f":"SUBTOTAL(109,Transportation[التكلفة الفعلية])","v":{"v":760,"d":"ر.س.‏ 760.000"}},{"$f":"SUBTOTAL(109,Transportation[الفارق])","v":{"v":20,"d":"ر.س.‏ 20.000"}},{"$nulls":10},"ترفيه",500]
[{"$nulls":6},"الهدايا والتبرعات","التكلفة التقديرية","التكلفة الفعلية","الفارق",{"$nulls":5},"هدايا",400]
[null,"التأمين","التكلفة التقديرية","التكلفة الفعلية","الفارق",null,"العمل الخيري الأول",null,null,{"$f":"Gifts[التكلفة التقديرية]-Gifts[التكلفة الفعلية]","v":{"v":0,"d":"ر.س.‏ 0.000"}},{"$nulls":5},"حيوانات أليفة",800]
[null,"المنزل",null,null,{"$f":"Insurance[التكلفة التقديرية]-Insurance[التكلفة الفعلية]","v":{"v":0,"d":"ر.س.‏ 0.000"}},null,"العمل الخيري الثاني",null,null,{"$f":"Gifts[التكلفة التقديرية]-Gifts[التكلفة الفعلية]","v":{"v":0,"d":"ر.س.‏ 0.000"}},{"$nulls":5},"عناية شخصية",200]
[null,"الصحة",{"v":50,"d":"ر.س.‏ 50.000"},{"v":50,"d":"ر.س.‏ 50.000"},{"$f":"Insurance[التكلفة التقديرية]-Insurance[التكلفة الفعلية]","v":{"v":0,"d":"ر.س.‏ 0.000"}},null,"العمل الخيري الثالث",null,null,{"$f":"Gifts[التكلفة التقديرية]-Gifts[التكلفة الفعلية]","v":{"v":0,"d":"ر.س.‏ 0.000"}},{"$nulls":5},"مدخرات",500]
[null,"الحياة",null,null,{"$f":"Insurance[التكلفة التقديرية]-Insurance[التكلفة الفعلية]","v":{"v":0,"d":"ر.س.‏ 0.000"}},null,"الإجمالي",{"$f":"SUBTOTAL(109,Gifts[التكلفة التقديرية])","v":{"v":0,"d":"ر.س.‏ 0.000"}},{"$f":"SUBTOTAL(109,Gifts[التكلفة الفعلية])","v":{"v":0,"d":"ر.س.‏ 0.000"}},{"$f":"SUBTOTAL(109,Gifts[الفارق])","v":{"v":0,"d":"ر.س.‏ 0.000"}}]
[null,"أشياء أخرى",null,null,{"$f":"Insurance[التكلفة التقديرية]-Insurance[التكلفة الفعلية]","v":{"v":0,"d":"ر.س.‏ 0.000"}}]
[null,"الإجمالي",{"$f":"SUBTOTAL(109,Insurance[التكلفة التقديرية])","v":{"v":50,"d":"ر.س.‏ 50.000"}},{"$f":"SUBTOTAL(109,Insurance[التكلفة الفعلية])","v":{"v":50,"d":"ر.س.‏ 50.000"}},{"$f":"SUBTOTAL(109,Insurance[الفارق])","v":{"v":0,"d":"ر.س.‏ 0.000"}},null,"الحيوانات الأليفة","التكلفة التقديرية","التكلفة الفعلية","الفارق"]
[{"$nulls":6},"الغذاء",null,null,{"$f":"Pets[التكلفة التقديرية]-Pets[التكلفة الفعلية]","v":{"v":0,"d":"ر.س.‏ 0.000"}}]
[null,"الأغذية","التكلفة التقديرية","التكلفة الفعلية","الفارق",null,"الرعاية الطبية",null,null,{"$f":"Pets[التكلفة التقديرية]-Pets[التكلفة الفعلية]","v":{"v":0,"d":"ر.س.‏ 0.000"}}]
[null,"البقالة",{"v":200,"d":"ر.س.‏ 200.000"},{"v":300,"d":"ر.س.‏ 300.000"},{"$f":"Food[التكلفة التقديرية]-Food[التكلفة الفعلية]","v":{"v":-100,"d":"-ر.س.‏ 100.000"}},null,"التنظيف",null,null,{"$f":"Pets[التكلفة التقديرية]-Pets[التكلفة الفعلية]","v":{"v":0,"d":"ر.س.‏ 0.000"}}]
[null,"تناول الطعام بالخارج",{"v":500,"d":"ر.س.‏ 500.000"},{"v":200,"d":"ر.س.‏ 200.000"},{"$f":"Food[التكلفة التقديرية]-Food[التكلفة الفعلية]","v":{"v":300,"d":"ر.س.‏ 300.000"}},null,"الدميات",null,null,{"$f":"Pets[التكلفة التقديرية]-Pets[التكلفة الفعلية]","v":{"v":0,"d":"ر.س.‏ 0.000"}}]
[null,"أشياء أخرى",null,null,{"$f":"Food[التكلفة التقديرية]-Food[التكلفة الفعلية]","v":{"v":0,"d":"ر.س.‏ 0.000"}},null,"أشياء أخرى",null,null,{"$f":"Pets[التكلفة التقديرية]-Pets[التكلفة الفعلية]","v":{"v":0,"d":"ر.س.‏ 0.000"}}]
[null,"الإجمالي",{"$f":"SUBTOTAL(109,Food[التكلفة التقديرية])","v":{"v":700,"d":"ر.س.‏ 700.000"}},{"$f":"SUBTOTAL(109,Food[التكلفة الفعلية])","v":{"v":500,"d":"ر.س.‏ 500.000"}},{"$f":"SUBTOTAL(109,Food[الفارق])","v":{"v":200,"d":"ر.س.‏ 200.000"}},null,"الإجمالي",{"$f":"SUBTOTAL(109,Pets[التكلفة التقديرية])","v":{"v":0,"d":"ر.س.‏ 0.000"}},{"$f":"SUBTOTAL(109,Pets[التكلفة الفعلية])","v":{"v":0,"d":"ر.س.‏ 0.000"}},{"$f":"SUBTOTAL(109,Pets[الفارق])","v":{"v":0,"d":"ر.س.‏ 0.000"}}]
[]
[null,"الأطفال","التكلفة التقديرية","التكلفة الفعلية","الفارق",null,"العناية الشخصية","التكلفة التقديرية","التكلفة الفعلية","الفارق"]
[null,"الرعاية الطبية",null,null,{"$f":"Children[التكلفة التقديرية]-Children[التكلفة الفعلية]","v":{"v":0,"d":"ر.س.‏ 0.000"}},null,"الرعاية الطبية",null,null,{"$f":"PersonalCare[التكلفة التقديرية]-PersonalCare[التكلفة الفعلية]","v":{"v":0,"d":"ر.س.‏ 0.000"}}]
[null,"الملابس",{"v":200,"d":"ر.س.‏ 200.000"},{"v":200,"d":"ر.س.‏ 200.000"},{"$f":"Children[التكلفة التقديرية]-Children[التكلفة الفعلية]","v":{"v":0,"d":"ر.س.‏ 0.000"}},null,"الشعر/ الأظافر",null,null,{"$f":"PersonalCare[التكلفة التقديرية]-PersonalCare[التكلفة الفعلية]","v":{"v":0,"d":"ر.س.‏ 0.000"}}]
[null,"تكاليف التعليم بالمدارس الخاصة",null,null,{"$f":"Children[التكلفة التقديرية]-Children[التكلفة الفعلية]","v":{"v":0,"d":"ر.س.‏ 0.000"}},null,"الملابس",{"v":100,"d":"ر.س.‏ 100.000"},{"v":400,"d":"ر.س.‏ 400.000"},{"$f":"PersonalCare[التكلفة التقديرية]-PersonalCare[التكلفة الفعلية]","v":{"v":-300,"d":"-ر.س.‏ 300.000"}}]
[null,"مستلزمات المدرسة",{"v":200,"d":"ر.س.‏ 200.000"},{"v":200,"d":"ر.س.‏ 200.000"},{"$f":"Children[التكلفة التقديرية]-Children[التكلفة الفعلية]","v":{"v":0,"d":"ر.س.‏ 0.000"}},null,"التنظيف الجاف",null,null,{"$f":"PersonalCare[التكلفة التقديرية]-PersonalCare[التكلفة الفعلية]","v":{"v":0,"d":"ر.س.‏ 0.000"}}]
[null,"رسوم أو مستحقات المؤسسة",null,null,{"$f":"Children[التكلفة التقديرية]-Children[التكلفة الفعلية]","v":{"v":0,"d":"ر.س.‏ 0.000"}},null,"النادي الصحي",null,null,{"$f":"PersonalCare[التكلفة التقديرية]-PersonalCare[التكلفة الفعلية]","v":{"v":0,"d":"ر.س.‏ 0.000"}}]
[null,"مصاريف الغذاء",{"v":100,"d":"ر.س.‏ 100.000"},{"v":100,"d":"ر.س.‏ 100.000"},{"$f":"Children[التكلفة التقديرية]-Children[التكلفة الفعلية]","v":{"v":0,"d":"ر.س.‏ 0.000"}},null,"رسوم/ مستحقات المؤسسة",null,null,{"$f":"PersonalCare[التكلفة التقديرية]-PersonalCare[التكلفة الفعلية]","v":{"v":0,"d":"ر.س.‏ 0.000"}}]
[null,"رعاية الأطفال",null,null,{"$f":"Children[التكلفة التقديرية]-Children[التكلفة الفعلية]","v":{"v":0,"d":"ر.س.‏ 0.000"}},null,"أشياء أخرى",null,null,{"$f":"PersonalCare[التكلفة التقديرية]-PersonalCare[التكلفة الفعلية]","v":{"v":0,"d":"ر.س.‏ 0.000"}}]
[null,"الألعاب/ الدميات",null,null,{"$f":"Children[التكلفة التقديرية]-Children[التكلفة الفعلية]","v":{"v":0,"d":"ر.س.‏ 0.000"}},null,"الإجمالي",{"$f":"SUBTOTAL(109,PersonalCare[التكلفة التقديرية])","v":{"v":100,"d":"ر.س.‏ 100.000"}},{"$f":"SUBTOTAL(109,PersonalCare[التكلفة الفعلية])","v":{"v":400,"d":"ر.س.‏ 400.000"}},{"$f":"SUBTOTAL(109,PersonalCare[الفارق])","v":{"v":-300,"d":"-ر.س.‏ 300.000"}}]
[null,"أشياء أخرى",null,null,{"$f":"Children[التكلفة التقديرية]-Children[التكلفة الفعلية]","v":{"v":0,"d":"ر.س.‏ 0.000"}}]
[null,"الإجمالي",{"$f":"SUBTOTAL(109,Children[التكلفة التقديرية])","v":{"v":500,"d":"ر.س.‏ 500.000"}},{"$f":"SUBTOTAL(109,Children[التكلفة الفعلية])","v":{"v":500,"d":"ر.س.‏ 500.000"}},{"$f":"SUBTOTAL(109,Children[الفارق])","v":{"v":0,"d":"ر.س.‏ 0.000"}},null,"القروض","التكلفة التقديرية","التكلفة الفعلية","الفارق"]
[{"$nulls":6},"الشخصية",null,null,{"$f":"Loans[التكلفة التقديرية]-Loans[التكلفة الفعلية]","v":{"v":0,"d":"ر.س.‏ 0.000"}}]
[null,"الشئون القانونية","التكلفة التقديرية","التكلفة الفعلية","الفارق",null,"قرض الطالب",null,null,{"$f":"Loans[التكلفة التقديرية]-Loans[التكلفة الفعلية]","v":{"v":0,"d":"ر.س.‏ 0.000"}}]
[null,"التوكيل",null,null,{"$f":"Legal[التكلفة التقديرية]-Legal[التكلفة الفعلية]","v":{"v":0,"d":"ر.س.‏ 0.000"}},null,"بطاقة الائتمان",null,null,{"$f":"Loans[التكلفة التقديرية]-Loans[التكلفة الفعلية]","v":{"v":0,"d":"ر.س.‏ 0.000"}}]
[null,"النفقة",null,null,{"$f":"Legal[التكلفة التقديرية]-Legal[التكلفة الفعلية]","v":{"v":0,"d":"ر.س.‏ 0.000"}},null,"بطاقة الائتمان",null,null,{"$f":"Loans[التكلفة التقديرية]-Loans[التكلفة الفعلية]","v":{"v":0,"d":"ر.س.‏ 0.000"}}]
[null,"الأقساط",null,null,{"$f":"Legal[التكلفة التقديرية]-Legal[التكلفة الفعلية]","v":{"v":0,"d":"ر.س.‏ 0.000"}},null,"بطاقة الائتمان",null,null,{"$f":"Loans[التكلفة التقديرية]-Loans[التكلفة الفعلية]","v":{"v":0,"d":"ر.س.‏ 0.000"}}]
[null,"أشياء أخرى",null,null,{"$f":"Legal[التكلفة التقديرية]-Legal[التكلفة الفعلية]","v":{"v":0,"d":"ر.س.‏ 0.000"}},null,"أشياء أخرى",null,null,{"$f":"Loans[التكلفة التقديرية]-Loans[التكلفة الفعلية]","v":{"v":0,"d":"ر.س.‏ 0.000"}}]
[null,"الإجمالي",{"$f":"SUBTOTAL(109,Legal[التكلفة التقديرية])","v":{"v":0,"d":"ر.س.‏ 0.000"}},{"$f":"SUBTOTAL(109,Legal[التكلفة الفعلية])","v":{"v":0,"d":"ر.س.‏ 0.000"}},{"$f":"SUBTOTAL(109,Legal[الفارق])","v":{"v":0,"d":"ر.س.‏ 0.000"}},null,"الإجمالي",{"$f":"SUBTOTAL(109,Loans[التكلفة التقديرية])","v":{"v":0,"d":"ر.س.‏ 0.000"}},{"$f":"SUBTOTAL(109,Loans[التكلفة الفعلية])","v":{"v":0,"d":"ر.س.‏ 0.000"}},{"$f":"SUBTOTAL(109,Loans[الفارق])","v":{"v":0,"d":"ر.س.‏ 0.000"}}]
[]
[null,"استثمارات/ مدخرات","التكلفة التقديرية","التكلفة الفعلية","الفارق",null,"الرسوم","التكلفة التقديرية","التكلفة الفعلية","الفارق"]
[null,"حساب التقاعد",null,null,{"$f":"Savings[التكلفة التقديرية]-Savings[التكلفة الفعلية]","v":{"v":0,"d":"ر.س.‏ 0.000"}},null,"الفيدرالية",null,null,{"$f":"Taxes[التكلفة التقديرية]-Taxes[التكلفة الفعلية]","v":{"v":0,"d":"ر.س.‏ 0.000"}}]
[null,"حساب الاستثمار",null,null,{"$f":"Savings[التكلفة التقديرية]-Savings[التكلفة الفعلية]","v":{"v":0,"d":"ر.س.‏ 0.000"}},null,"الحكومية",null,null,{"$f":"Taxes[التكلفة التقديرية]-Taxes[التكلفة الفعلية]","v":{"v":0,"d":"ر.س.‏ 0.000"}}]
[null,"الكلية",null,null,{"$f":"Savings[التكلفة التقديرية]-Savings[التكلفة الفعلية]","v":{"v":0,"d":"ر.س.‏ 0.000"}},null,"المحلية",null,null,{"$f":"Taxes[التكلفة التقديرية]-Taxes[التكلفة الفعلية]","v":{"v":0,"d":"ر.س.‏ 0.000"}}]
[null,"أشياء أخرى",null,null,{"$f":"Savings[التكلفة التقديرية]-Savings[التكلفة الفعلية]","v":{"v":0,"d":"ر.س.‏ 0.000"}},null,"أشياء أخرى",null,null,{"$f":"Taxes[التكلفة التقديرية]-Taxes[التكلفة الفعلية]","v":{"v":0,"d":"ر.س.‏ 0.000"}}]
[null,"الإجمالي",{"$f":"SUBTOTAL(109,Savings[التكلفة التقديرية])","v":{"v":0,"d":"ر.س.‏ 0.000"}},{"$f":"SUBTOTAL(109,Savings[التكلفة الفعلية])","v":{"v":0,"d":"ر.س.‏ 0.000"}},{"$f":"SUBTOTAL(109,Savings[الفارق])","v":{"v":0,"d":"ر.س.‏ 0.000"}},null,"الإجمالي",{"$f":"SUBTOTAL(109,Taxes[التكلفة التقديرية])","v":{"v":0,"d":"ر.س.‏ 0.000"}},{"$f":"SUBTOTAL(109,Taxes[التكلفة الفعلية])","v":{"v":0,"d":"ر.س.‏ 0.000"}},{"$f":"SUBTOTAL(109,Taxes[الفارق])","v":{"v":0,"d":"ر.س.‏ 0.000"}}]